bitfinex/quotes_SOLUSD_20250607
["timestamp","ask_amount","ask_price","bid_price","bid_amount"]
[1749298422183,4.98003834,151.83,151.79,39.88]
[1749298422579,6.58597053,151.84,151.79,39.88]
[1749298422783,4.98003834,151.83,151.79,44.86003834]
[1749298427675,4.98003834,151.84,151.8,4.98003834]
[1749298429204,11.56597683,151.84,151.8,4.98003834]
[1749298432698,4.98003834,151.83,151.79,51.44789148]
[1749298437014,4.98003834,151.83,151.79,61.60789148]
[1749298437517,4.98003834,151.8,151.76,36.16]
[1749298437819,4.98003834,151.8,151.77,39.84]
[1749298439306,4.98003834,151.81,151.77,46.42869048]
[1749298439605,4.98003834,151.82,151.78,4.98003834]
[1749298439998,4.98003834,151.83,151.78,4.98003834]
[1749298440401,4.98003834,151.83,151.79,6.58804927]
[1749298441811,4.98003834,151.83,151.79,11.56808761]
[1749298445604,4.98003834,151.83,151.79,6.58804927]
[1749298445797,11.56638841,151.83,151.78,21.72838951]
[1749298446099,11.56638841,151.83,151.78,10.16]
[1749298446100,4.98003834,151.82,151.78,10.16]
[1749298447407,11.5668162,151.82,151.78,10.16]
[1749298448013,4.98003834,151.81,151.78,10.16]
[1749298448607,4.98003834,151.82,151.78,16.7484635]
[1749298448912,11.56687029,151.82,151.78,10.16]
[1749298449316,4.98003834,151.81,151.78,10.16]
[1749298449502,11.56726895,151.81,151.78,10.16]
[1749298449705,4.98003834,151.8,151.78,10.16]
[1749298450094,4.98003834,151.8,151.78,50.0]
[1749298450293,4.98003834,151.8,151.78,10.16]
[1749298450509,4.98003834,151.8,151.78,50.0]
[1749298452591,4.98003834,151.79,151.78,50.0]
[1749298452822,4.98003834,151.79,151.78,39.84]
[1749298453115,4.98003834,151.8,151.78,39.84]
[1749298453896,11.56724804,151.81,151.78,39.84]
[1749298455413,4.98003834,151.8,151.78,39.84]
[1749298456303,4.98003834,151.79,151.78,39.84]
[1749298456515,1.5222,151.83,151.78,51.40851869]
[1749298456717,4.98003834,151.83,151.79,4.98003834]
[1749298457018,4.98003834,151.84,151.79,4.98003834]
[1749298458716,4.98003834,151.84,151.8,6.58761528]
[1749298459307,4.98003834,151.84,151.8,11.56765362]
[1749298459511,4.98003834,151.85,151.8,11.56765362]
[1749298459710,4.98003834,151.84,151.8,11.56765362]
[1749298461425,4.98003834,151.83,151.8,6.58761528]
[1749298462230,4.98003834,151.84,151.8,11.56765362]
[1749298471917,4.98003834,151.85,151.82,6.58674746]
[1749298472333,4.98003834,151.85,151.83,39.84]
[1749298477218,4.98003834,151.86,151.83,39.84]
[1749298483725,4.98003834,151.86,151.83,46.42624689]
[1749298484436,4.98003834,151.88,151.83,51.40628523]
[1749298485036,4.98003834,151.87,151.83,51.40628523]
[1749298486351,4.98003834,151.86,151.83,46.42624689]
[1749298487845,4.98003834,151.87,151.83,46.42624689]
[1749298488542,4.98003834,151.88,151.83,51.40628523]
[1749298489722,4.98003834,151.87,151.83,51.40628523]
[1749298491344,32.58384383,151.89,151.83,39.84]
[1749298491345,4.98003834,151.86,151.83,39.84]
[1749298491628,4.98003834,151.85,151.84,39.84]
[1749298494350,11.5654845,151.85,151.84,39.84]
[1749298494644,4.98003834,151.85,151.84,39.84]
[1749298495050,11.5654845,151.85,151.84,39.84]
[1749298496353,11.5654845,151.85,151.81,10.16]
[1749298496530,11.5654845,151.85,151.82,39.84]
[1749298496531,4.98003834,151.83,151.82,39.84]
[1749298499342,11.56635198,151.83,151.82,39.84]
[1749298499856,4.98003834,151.83,151.82,39.84]
[1749298500254,11.56635198,151.83,151.82,39.84]
[1749298500551,4.98003834,151.83,151.82,39.84]
[1749298501468,11.56637755,151.83,151.81,39.84]
[1749298501643,4.98003834,151.82,151.81,39.84]
[1749298502042,4.98003834,151.82,151.78,26.0]
[1749298502356,4.98003834,151.81,151.79,39.84]
[1749298502739,4.98003834,151.82,151.79,46.42804511]
[1749298503158,4.98003834,151.84,151.79,51.40808345]
[1749298506364,6.58513233,151.86,151.79,51.40808345]
[1749298506663,4.98003834,151.84,151.79,61.56808345]
[1749298509348,6.58552664,151.85,151.79,61.56808345]
[1749298509349,4.98003834,151.83,151.79,61.56808345]
[1749298509555,11.56690746,151.82,151.79,50.0]
[1749298509962,4.98003834,151.8,151.79,10.16]
[1749298510149,4.98003834,151.8,151.79,39.84]
[1749298510661,4.98003834,151.8,151.77,26.0]
[1749298510871,4.98003834,151.8,151.76,6.58917944]
[1749298510872,4.98003834,151.79,151.78,39.84]
[1749298511542,4.98003834,151.79,151.75,10.16]
[1749298511740,6.58810946,151.79,151.78,39.84]
[1749298511965,6.58810946,151.79,151.77,39.84]
[1749298512955,4.98003834,151.78,151.75,10.16]
[1749298513155,7.78919576,151.76,151.72,44.55100755]
[1749298513348,7.78919576,151.74,151.72,37.96]
[1749298513553,7.78919576,151.74,151.73,39.84]
[1749298514755,7.78919576,151.74,151.71,10.16]
[1749298515064,7.78919576,151.74,151.72,39.84]
[1749298524066,7.78919576,151.75,151.72,46.4308873]
[1749298524275,7.78919576,151.76,151.72,54.22008306]
[1749298525194,18.64964886,151.79,151.72,54.22008306]
[1749298525195,6.58807387,151.79,151.72,46.4308873]
[1749298525352,7.78919576,151.77,151.73,7.78919576]
[1749298526378,7.78919576,151.77,151.74,6.59022011]
[1749298528274,6.58807387,151.79,151.72,39.84]
[1749298528275,7.78919576,151.75,151.72,39.84]
[1749298528459,7.78919576,151.74,151.72,39.84]
[1749298530973,7.78919576,151.73,151.72,39.84]
[1749298532285,7.78919576,151.73,151.71,10.16]
[1749298532463,7.78919576,151.73,151.72,39.86]
[1749298533495,7.78919576,151.74,151.72,39.86]
[1749298534184,7.78919576,151.75,151.72,39.86]
[1749298534393,7.78919576,151.74,151.72,39.86]
[1749298535768,7.78919576,151.75,151.72,46.45095702]
[1749298537462,7.78919576,151.75,151.72,39.86]
[1749298538084,7.78919576,151.74,151.72,39.86]
[1749298538482,7.78919576,151.73,151.72,39.86]
[1749298538992,7.78919576,151.73,151.71,10.16]
[1749298539294,6.5893701,151.76,151.71,10.16]
[1749298539295,7.78919576,151.72,151.71,39.86]
[1749298540374,7.78919576,151.72,151.7,39.86]
[1749298540577,7.78919576,151.71,151.7,39.86]
[1749298541159,7.78919576,151.72,151.7,39.86]
[1749298541862,7.78919576,151.72,151.7,46.45181045]
[1749298542083,7.78919576,151.74,151.7,46.45181045]
[1749298542483,7.78919576,151.73,151.7,46.45181045]
[1749298543567,7.78919576,151.73,151.7,39.86]
[1749298543795,7.78919576,151.72,151.7,39.86]
[1749298546302,7.78919576,151.71,151.7,39.86]
[1749298549090,7.78919576,151.72,151.7,39.86]
[1749298551010,7.78919576,151.72,151.71,39.86]
[1749298559218,4.98730059,151.72,151.71,39.86]
[1749298562398,11.57839725,151.72,151.7,39.86]
[1749298562721,4.98730059,151.71,151.7,39.86]
[1749298562921,4.98730059,151.71,151.68,39.86]
[1749298564707,11.57882901,151.71,151.68,39.86]
[1749298564905,4.98730059,151.7,151.68,39.86]
[1749298565326,7.79555639,151.69,151.68,39.86]
[1749298565631,7.79555639,151.7,151.68,39.86]
[1749298567423,7.79555639,151.69,151.67,10.16]
[1749298567630,7.79555639,151.68,151.67,10.16]
[1749298567801,7.79555639,151.68,151.67,39.86]
[1749298568424,7.79555639,151.69,151.67,39.86]
[1749298569829,7.79555639,151.69,151.66,6.59369568]
[1749298570003,7.79555639,151.69,151.67,39.86]
[1749298571625,7.79555639,151.68,151.67,39.86]
[1749298575610,7.79555639,151.69,151.67,39.86]
[1749298580412,7.79555639,151.69,151.67,39.86]
[1749298581132,62.63888629,151.73,151.67,39.86]
[1749298581433,7.79555639,151.69,151.67,39.86]
[1749298583233,7.79555639,151.7,151.67,46.45319356]
[1749298585437,4.98873934,151.7,151.67,46.45319356]
[1749298585936,46.16184886,151.73,151.67,46.45319356]
[1749298585937,4.98873934,151.71,151.67,46.45319356]
[1749298586111,26.0,151.75,151.68,4.98873934]
[1749298586316,4.98873934,151.73,151.68,4.98873934]
[1749298586724,4.98873934,151.73,151.67,46.45319356]
[1749298586932,4.98873934,151.73,151.68,4.98873934]
[1749298587134,4.98873934,151.73,151.69,6.59239237]
[1749298589339,4.98873934,151.73,151.69,4.98873934]
[1749298590738,4.98873934,151.73,151.69,11.58076335]
[1749298595240,4.98873934,151.74,151.69,11.58076335]
[1749298597019,150.1044,151.77,151.71,4.98873934]
[1749298597222,148.5,151.77,151.72,44.84873934]
[1749298597443,4.98873934,151.76,151.72,44.84873934]
[1749298597634,4.98873934,151.77,151.73,4.98873934]
[1749298598728,4.98873934,151.77,151.74,6.59022011]
[1749298598945,6.58811417,151.79,151.74,11.57895945]
[1749298599249,4.98873934,151.78,151.74,11.57895945]
[1749298599445,4.98873934,151.79,151.74,11.57895945]
[1749298599649,4.98873934,151.78,151.74,11.57895945]
[1749298599819,4.98873934,151.77,151.73,11.57938594]
[1749298600224,4.98873934,151.78,151.73,11.57938594]
[1749298602344,11.57724691,151.78,151.73,11.57938594]
[1749298602845,4.98873934,151.77,151.73,11.57938594]
[1749298606645,6.58804927,151.79,151.73,11.57938594]
[1749298606956,4.98873934,151.77,151.73,11.57938594]
[1749298607147,4.98873934,151.78,151.74,4.98873934]
[1749298607641,4.98873934,151.78,151.74,11.5789332]
[1749298608730,4.98873934,151.79,151.75,4.98873934]
[1749298608938,34.22172476,151.81,151.75,4.98873934]
[1749298609158,4.98873934,151.8,151.76,39.86]
[1749298609657,4.98873934,151.79,151.76,39.86]
[1749298610154,27.6344,151.81,151.76,51.43793989]
[1749298610336,4.98873934,151.8,151.76,51.43793989]
[1749298610540,4.98873934,151.79,151.76,46.44920055]
[1749298615561,4.98873934,151.79,151.76,39.86]
[1749298617462,11.57680771,151.79,151.76,39.86]
[1749298617644,4.98873934,151.77,151.76,39.86]
[1749298619943,4.98873934,151.78,151.76,39.86]
[1749298622142,4.98873934,151.77,151.76,39.86]
[1749298622363,4.98873934,151.77,151.73,10.16]
[1749298622555,4.98873934,151.77,151.7,4.98873934]
[1749298622556,4.98873934,151.74,151.7,4.98873934]
[1749298622751,4.98873934,151.74,151.7,30.98873934]
[1749298622965,4.98873934,151.74,151.71,39.84]
[1749298623550,4.98873934,151.74,151.7,37.58061644]
[1749298623753,4.98873934,151.74,151.72,39.84]
[1749298624359,4.98873934,151.75,151.72,39.84]
[1749298624573,4.98873934,151.75,151.72,46.43107748]
[1749298624954,4.98873934,151.75,151.72,39.84]
[1749298630157,11.57854555,151.75,151.72,39.84]
[1749298630559,4.98873934,151.74,151.72,39.84]
[1749298631083,4.98873934,151.73,151.72,39.84]
[1749298631765,4.98873934,151.73,151.69,10.16]
[1749298631958,4.98873934,151.72,151.7,39.84]
[1749298632279,4.98873934,151.71,151.69,50.0]
[1749298632474,4.98873934,151.71,151.69,39.84]
[1749298633189,7.79402089,151.71,151.69,39.84]
[1749298633757,6.59083368,151.73,151.69,39.84]
[1749298633963,7.79402089,151.74,151.69,47.63402089]
[1749298634766,7.79402089,151.74,151.69,54.22641114]
[1749298635681,7.79402089,151.73,151.69,54.22641114]
[1749298642665,18.64964886,151.76,151.69,54.22641114]
[1749298642862,7.79402089,151.74,151.7,7.79402089]
[1749298643090,7.79402089,151.76,151.71,7.79402089]
[1749298643996,9.40602089,151.77,151.72,7.79402089]
[1749298644180,7.79402089,151.77,151.73,47.65402089]
[1749298644381,7.79402089,151.77,151.74,46.45021233]
[1749298644574,7.79402089,151.78,151.74,54.24423322]
[1749298644794,7.79402089,151.79,151.74,54.24423322]
[1749298644980,7.79402089,151.79,151.75,7.79402089]
[1749298646679,7.79402089,151.79,151.75,14.38371622]
[1749298648402,7.79402089,151.79,151.75,6.58969533]
[1749298654711,8.17145226,151.81,151.75,6.58969533]
[1749298654889,198.31557889,151.82,151.76,7.79402089]
[1749298655203,180.10959978,151.82,151.77,7.79402089]
[1749298655501,23.81557889,151.82,151.79,7.79402089]
[1749298656918,23.81557889,151.82,151.79,14.38197184]
[1749298657998,23.81557889,151.82,151.79,7.79402089]
[1749298661307,31.60959978,151.82,151.78,47.63402089]
[1749298661889,31.60959978,151.82,151.78,39.84]
[1749298662710,38.19638784,151.82,151.78,39.84]
[1749298673317,35.38321542,151.82,151.78,39.84]
[1749298677517,4.98084847,151.81,151.78,39.84]
[1749298677818,4.98084847,151.79,151.77,39.84]
[1749298678220,4.98084847,151.8,151.77,39.84]
[1749298679622,11.56870793,151.8,151.77,39.84]
[1749298680006,4.98084847,151.79,151.77,39.84]
[1749298681922,11.56870793,151.8,151.77,39.84]
[1749298689837,4.98084847,151.8,151.77,39.84]
[1749298691031,4.98084847,151.8,151.77,46.42890586]
[1749298691336,4.98084847,151.81,151.77,46.42890586]
[1749298701838,28.79642736,151.82,151.78,4.98084847]
[1749298702140,23.81557889,151.82,151.78,4.98084847]
[1749298702717,23.81557889,151.82,151.78,11.56909443]
[1749298705419,23.81557889,151.82,151.79,4.98084847]
[1749298707546,23.81557889,151.82,151.79,11.568767]
[1749298714137,23.81557889,151.82,151.78,6.58846056]
[1749298714345,4.98084847,151.81,151.77,39.84]
[1749298714536,30.40255811,151.82,151.76,37.56994468]
[1749298714537,4.98084847,151.8,151.78,39.82]
[1749298715346,4.98084847,151.79,151.75,16.74966887]
[1749298715549,4.98084847,151.78,151.76,39.82]
[1749298715926,4.98084847,151.78,151.75,10.16]
[1749298716127,4.98084847,151.78,151.75,49.98]
[1749298719831,11.56901549,151.79,151.75,49.98]
[1749298720449,4.98084847,151.79,151.75,56.56968625]
[1749298720635,4.98084847,151.79,151.75,61.55053472]
[1749298720840,4.98084847,151.8,151.76,4.98084847]
[1749298721151,4.98084847,151.81,151.77,4.98084847]
[1749298721330,4.98084847,151.81,151.77,11.56968818]
[1749298723637,4.98084847,151.81,151.76,11.57020007]
[1749298723953,28.79642736,151.82,151.78,4.98084847]
[1749298724153,28.79642736,151.82,151.79,39.84]
[1749298725838,28.79642736,151.82,151.79,46.42795599]
[1749298726037,23.81557889,151.82,151.79,46.42795599]
[1749298727249,23.81557889,151.82,151.79,51.40880446]
[1749298727650,23.81557889,151.82,151.8,11.56827484]
[1749298729258,23.81557889,151.82,151.81,4.98084847]
[1749298729938,4.98084847,151.87,151.81,4.98084847]
[1749298730142,4.98084847,151.87,151.82,4.98084847]
[1749298730442,1.6378,151.88,151.8,16.74742637]
[1749298730443,6.61864847,151.88,151.83,44.80084847]
[1749298730669,6.61864847,151.88,151.83,44.73037117]
[1749298730970,4.98084847,151.87,151.83,44.73037117]
[1749298731263,4.98084847,151.87,151.83,51.31625469]
[1749298731468,4.98084847,151.87,151.83,44.73037117]
[1749298732673,11.56543884,151.87,151.83,44.73037117]
[1749298733778,4.98084847,151.87,151.83,44.73037117]
[1749298733972,4.98084847,151.87,151.83,51.31656424]
[1749298737082,11.56546505,151.87,151.83,44.73037117]
[1749298738283,4.98084847,151.87,151.83,51.31659491]
[1749298738469,4.98084847,151.88,151.83,51.31659491]
[1749298738665,4.98084847,151.89,151.85,4.98084847]
[1749298738965,4.98084847,151.89,151.83,46.33574644]
[1749298738966,11.56465486,151.89,151.86,39.82]
[1749298740975,4.98084847,151.89,151.86,39.82]
[1749298742760,4.98084847,151.9,151.86,51.38566259]
[1749298742960,4.98084847,151.9,151.86,44.80084847]
[1749298744192,11.56413713,151.9,151.86,44.80084847]
[1749298746363,4.98084847,151.9,151.86,51.38583924]
[1749298746971,4.98084847,151.9,151.86,44.80084847]
[1749298748191,4.98084847,151.89,151.86,39.82]
[1749298751469,4.98084847,151.9,151.86,44.80084847]
[1749298753269,11.56416638,151.9,151.86,44.80084847]
[1749298755382,4.98084847,151.89,151.86,39.82]
[1749298756500,11.56458112,151.89,151.86,39.82]
[1749298758115,6.5828451,151.91,151.86,44.80084847]
[1749298758401,4.98084847,151.9,151.86,44.80084847]
[1749298759595,11.56426202,151.9,151.86,44.80084847]
[1749298760683,4.98084847,151.89,151.86,39.82]
[1749298761067,4.98084847,151.88,151.86,39.82]
[1749298761492,4.98084847,151.87,151.82,6.1053]
[1749298761692,4.98084847,151.86,151.83,39.8]
[1749298762903,4.98084847,151.86,151.84,39.8]
[1749298763405,4.98084847,151.87,151.84,39.8]
[1749298764498,4.98084847,151.86,151.84,39.8]
[1749298768897,11.56589906,151.86,151.84,39.8]
[1749298769204,4.98084847,151.86,151.84,39.8]
[1749298769590,11.56591586,151.86,151.84,39.8]
[1749298776515,4.98084847,151.86,151.84,39.8]
[1749298778515,11.5655409,151.87,151.84,39.8]
[1749298780013,4.98084847,151.86,151.84,39.8]
[1749298781224,11.56597041,151.86,151.84,39.8]
[1749298783221,4.98084847,151.86,151.84,39.8]
[1749298784118,11.56600208,151.86,151.84,39.8]
[1749298784921,35.10890598,151.9,151.84,39.8]
[1749298784922,11.56551208,151.87,151.84,39.8]
[1749298785119,4.98084847,151.87,151.84,39.8]
[1749298786104,11.56553779,151.87,151.84,39.8]
[1749298786715,4.98084847,151.86,151.84,39.8]
[1749298789211,11.56586641,151.86,151.84,39.8]
[1749298789428,4.98084847,151.86,151.84,39.8]
[1749298792925,11.56588011,151.86,151.84,39.8]
[1749298795429,4.98084847,151.86,151.84,39.8]
[1749298795633,11.56559971,151.87,151.84,39.8]
[1749298797632,4.98084847,151.86,151.84,39.8]
[1749298799230,11.56586415,151.86,151.84,39.8]
[1749298804351,4.98084847,151.85,151.8,10.14]
[1749298804650,6.58501568,151.86,151.81,39.8]
[1749298804651,4.98084847,151.83,151.81,39.8]
[1749298804852,4.98084847,151.82,151.81,39.8]
[1749298805150,4.98084847,151.82,151.8,49.94]
[1749298805328,4.98084847,151.81,151.8,39.8]
[1749298805533,4.98084847,151.81,151.76,10.14]
[1749298805728,4.98084847,151.79,151.76,10.14]
[1749298805925,4.98084847,151.79,151.77,39.8]
[1749298806152,4.98084847,151.8,151.77,39.8]
[1749298806654,4.98084847,151.82,151.78,4.98084847]
[1749298807934,8.11391281,151.83,151.78,11.56924567]
[1749298808135,4.98084847,151.82,151.78,11.56924567]
[1749298810635,4.98084847,151.82,151.78,6.5883972]
[1749298811237,4.98084847,151.82,151.79,39.82]
[1749298814825,4.98084847,151.83,151.79,51.38862051]
[1749298815026,154.63561259,151.89,151.82,4.98084847]
[1749298815360,4.98084847,151.91,151.86,4.98084847]
[1749298815562,30.98084847,151.91,151.87,39.96]
[1749298816063,4.98084847,151.91,151.87,39.96]
[1749298816645,4.98084847,151.91,151.87,46.54425007]
[1749298816846,4.98084847,151.92,151.87,51.52509854]
[1749298818446,18.64964886,151.93,151.88,4.98084847]
[1749298818650,4.98084847,151.92,151.88,4.98084847]
[1749298818844,4.98084847,151.93,151.88,4.98084847]
[1749298819561,4.98084847,151.93,151.89,4.98084847]
[1749298819965,4.98084847,151.94,151.9,4.98084847]
[1749298820149,4.98084847,151.94,151.91,39.96]
[1749298823161,7.76959707,151.95,151.91,39.96]
[1749298823365,7.76959707,151.95,151.91,47.72959707]
[1749298825087,7.76959707,151.96,151.92,7.76959707]
[1749298828152,14.35027896,151.96,151.92,7.76959707]
[1749298828577,7.76959707,151.94,151.91,39.96]
[1749298828768,14.35196339,151.93,151.91,39.96]
[1749298829078,7.76959707,151.92,151.91,39.98]
[1749298829282,6.58069931,151.96,151.91,39.98]
[1749298829483,7.76959707,151.94,151.91,39.98]
[1749298830062,7.76959707,151.93,151.92,40.08]
[1749298831677,7.76959707,151.94,151.92,40.08]
[1749298832795,14.35078906,151.95,151.92,40.08]
[1749298832999,7.76959707,151.95,151.92,40.08]
[1749298834987,7.76959707,151.93,151.89,40.06]
[1749298835287,7.76959707,151.91,151.89,40.06]
[1749298836083,6.58237846,151.93,151.89,40.06]
[1749298836278,7.76959707,151.91,151.89,40.06]
[1749298837001,7.76959707,151.92,151.89,40.06]
[1749298837180,7.76959707,151.93,151.89,47.82959707]
[1749298838462,7.76959707,151.94,151.89,54.41328187]
[1749298839474,7.76959707,151.93,151.89,46.6436848]
[1749298840993,7.76959707,151.93,151.89,40.06]
[1749298841973,7.76959707,151.94,151.89,54.41327961]
[1749298842390,7.76959707,151.94,151.9,7.76959707]
[1749298842591,14.35120266,151.94,151.89,54.41327961]
[1749298843490,7.76959707,151.92,151.89,40.06]
[1749298843882,6.58160559,151.94,151.89,47.82959707]
[1749298844196,7.76959707,151.93,151.89,47.82959707]
[1749298845889,7.76959707,151.93,151.89,40.06]
[1749298846076,7.76959707,151.93,151.89,47.82959707]
[1749298846496,7.76959707,151.93,151.89,40.06]
[1749298846871,14.35164654,151.93,151.89,40.06]
[1749298848183,6.58204947,151.93,151.89,40.06]
[1749298848385,6.5811122,151.95,151.89,40.06]
[1749298848591,7.76959707,151.92,151.89,40.06]
[1749298849172,6.5811122,151.95,151.89,51.61671285]
[1749298849368,4.97314227,151.94,151.89,45.03314227]
[1749298849574,4.97314227,151.92,151.89,40.06]
[1749298851592,4.97314227,151.92,151.89,46.64367868]
[1749298852685,4.97314227,151.93,151.89,46.64367868]
[1749298854576,4.97314227,151.93,151.89,40.06]
[1749298854778,6.58127328,151.95,151.89,46.64358153]
[1749298854979,4.97314227,151.94,151.9,4.97314227]
[1749298855807,4.97314227,151.94,151.91,6.5828451]
[1749298856106,4.97314227,151.95,151.91,4.97314227]
[1749298857079,4.97314227,151.95,151.91,11.55570216]
[1749298857691,4.97314227,151.96,151.92,4.97314227]
[1749298857992,4.97314227,151.96,151.93,40.04]
[1749298859303,7.76711094,151.96,151.93,40.04]
[1749298859498,7.76711094,151.96,151.93,46.62185066]
[1749298860006,7.76711094,151.97,151.93,54.3889616]
[1749298861204,14.34739622,151.97,151.93,40.04]
[1749298861714,14.34739622,151.97,151.93,47.80711094]
[1749298862011,14.34739622,151.97,151.93,40.04]
[1749298863085,6.57995115,151.98,151.93,54.3890767]
[1749298863304,14.34706209,151.98,151.93,54.3890767]
[1749298863726,6.57894736,152.0,151.95,7.76711094]
[1749298864004,14.3460583,152.0,151.95,7.76711094]
[1749298864697,7.76711094,151.98,151.93,40.04]
[1749298864894,7.76711094,151.94,151.9,7.76711094]
[1749298865088,7.76711094,151.94,151.87,6.4987]
[1749298865089,7.76711094,151.92,151.88,7.76711094]
[1749298865292,7.76711094,151.92,151.87,14.26581094]
[1749298865492,7.76711094,151.92,151.88,40.04]
[1749298865696,7.76711094,151.92,151.88,47.80711094]
[1749298866215,7.76711094,151.92,151.88,40.04]
[1749298866515,7.76711094,151.92,151.88,47.80711094]
[1749298866696,14.34963446,151.92,151.88,7.76711094]
[1749298866896,14.34963446,151.92,151.89,40.04]
[1749298867220,7.76711094,151.91,151.89,40.04]
[1749298867909,7.76711094,151.91,151.88,40.04]
[1749298868901,14.34999188,151.91,151.86,50.63205145]
[1749298869088,7.76711094,151.9,151.86,36.28]
[1749298869417,7.76711094,151.9,151.87,40.04]
[1749298870410,7.76711094,151.91,151.87,40.04]
[1749298870612,7.76711094,151.91,151.87,47.80711094]
[1749298871806,7.76711094,151.91,151.86,50.63182629]
[1749298872008,7.76711094,151.91,151.87,40.04]
[1749298872207,14.35002383,151.91,151.87,40.04]
[1749298872406,14.35002383,151.91,151.86,50.63182629]
[1749298872715,14.35002383,151.91,151.87,40.04]
[1749298872909,7.76711094,151.9,151.87,40.04]
[1749298873519,7.76711094,151.9,151.86,10.28]
[1749298873717,7.76711094,151.89,151.86,10.28]
[1749298873903,7.76711094,151.88,151.86,10.28]
[1749298874108,7.76711094,151.88,151.85,40.04]
[1749298874433,14.35139065,151.88,151.84,26.0]
[1749298874640,14.35139065,151.88,151.85,40.04]
[1749298875003,14.35139065,151.88,151.83,20.80688788]
[1749298875224,14.35139065,151.88,151.84,40.04]
[1749298875524,7.76711094,151.87,151.84,40.04]
[1749298876434,7.76711094,151.86,151.84,40.04]
[1749298878810,7.76711094,151.87,151.84,46.62582236]
[1749298879129,7.76711094,151.88,151.84,46.62582236]
[1749298880329,7.76711094,151.88,151.84,54.3929333]
[1749298880516,7.76711094,151.89,151.84,54.3929333]
[1749298881611,7.76711094,151.88,151.84,54.3929333]
[1749298884937,25.23249396,151.91,151.84,54.3929333]
[1749298885136,7.76711094,151.88,151.84,54.3929333]
[1749298885435,7.76711094,151.89,151.85,7.76711094]
[1749298886023,7.76711094,151.91,151.86,7.76711094]
[1749298886926,7.76711094,151.91,151.86,14.35182974]
[1749298887119,8.08447199,151.92,151.86,14.35182974]
[1749298887318,7.76711094,151.9,151.86,14.35182974]
[1749298890939,7.76711094,151.89,151.85,7.76711094]
[1749298891148,7.76711094,151.87,151.82,10.28]
[1749298891448,7.76711094,151.85,151.83,40.02]
[1749298891953,7.76711094,151.85,151.82,10.28]
[1749298892146,7.76711094,151.85,151.83,40.02]
[1749298893146,14.35217557,151.86,151.83,40.02]
[1749298893448,7.76711094,151.86,151.83,40.02]
[1749298894647,7.76711094,151.86,151.82,16.8666447]
[1749298894832,7.76711094,151.86,151.83,40.02]
[1749298896646,6.58327847,151.9,151.83,46.60629494]
[1749298896878,7.76711094,151.88,151.83,54.37340588]
[1749298897458,7.76711094,151.88,151.84,7.76711094]
[1749298898050,7.76711094,151.9,151.85,7.76711094]
[1749298898261,7.76711094,151.9,151.86,7.76711094]
[1749298898476,7.76711094,151.9,151.87,40.02]
[1749298898976,7.76711094,151.91,151.87,54.37157751]
[1749298899335,7.76711094,151.92,151.87,54.37157751]
[1749298899541,7.76711094,151.92,151.88,7.76711094]
[1749298900241,7.76711094,151.92,151.87,54.37157751]
[1749298901666,14.34955182,151.92,151.87,54.37157751]
[1749298903658,7.76711094,151.92,151.87,54.37157751]
[1749298904572,7.76711094,151.92,151.88,7.76711094]
[1749298906072,7.76711094,151.92,151.88,14.35109167]
[1749298912776,7.76711094,151.93,151.89,7.76711094]
[1749298913674,7.76711094,151.93,151.89,14.35057469]
[1749298913877,14.34878738,151.94,151.89,14.35057469]
[1749298914257,7.76711094,151.93,151.89,14.35057469]
[1749298920676,7.76711094,151.94,151.9,7.76711094]
[1749298920872,7.76711094,151.94,151.91,39.96]
[1749298922280,7.76711094,151.95,151.91,46.54276536]
[1749298923774,7.76711094,151.95,151.91,54.3098763]
[1749298927677,7.76711094,151.95,151.91,46.54276536]
[1749298929275,7.76711094,151.94,151.86,10.42216157]
[1749298929478,7.76711094,151.91,151.87,7.76711094]
[1749298929681,7.76711094,151.91,151.88,39.94]
[1749298929985,7.76711094,151.92,151.88,39.94]
[1749298930572,7.76711094,151.92,151.88,46.52407174]
[1749298932374,14.34955903,151.92,151.88,39.94]
[1749298934181,7.76711094,151.91,151.86,42.86487188]
[1749298934490,7.76711094,151.9,151.87,39.92]
[1749298935677,7.76711094,151.91,151.87,39.92]
[1749298936189,7.76711094,151.91,151.88,39.92]
[1749298937389,14.35023585,151.91,151.88,39.92]
[1749298938497,7.76711094,151.89,151.86,10.28]
[1749298938701,7.76711094,151.89,151.86,39.92]
[1749298943297,4.97572107,151.89,151.86,39.92]